bitfinex-derivatives/quotes_ETHF0:USTF0_20260131
["timestamp","ask_amount","ask_price","bid_price","bid_amount"]
[1769869431374,0.00459199,2587.9,2586.4,0.19361]
[1769869431577,3.97013348,2587.9,2586.4,0.19361]
[1769869431779,3.97013348,2587.9,2586.2,0.00398851]
[1769869432083,3.96554149,2587.7,2586.2,0.00398851]
[1769869432478,3.96554149,2586.9,2585.5,3.868]
[1769869432973,2.43533897,2587.9,2585.5,3.868]
[1769869432974,2.43074698,2586.7,2585.5,3.868]
[1769869433177,3.96554149,2586.8,2584.5,0.00689587]
[1769869433376,3.96554149,2586.1,2584.5,0.00689587]
[1769869433575,3.96554149,2585.9,2584.6,0.7240939]
[1769869433888,3.97018085,2585.9,2584.6,0.7240939]
[1769869434182,3.87884956,2585.4,2584.0,3.868]
[1769869434384,3.87884956,2585.3,2584.0,3.868]
[1769869434580,3.87884956,2585.2,2583.3,2.46874351]
[1769869434885,3.87884956,2584.2,2582.6,3.868]
[1769869435284,3.87884956,2584.0,2582.6,3.87040677]
[1769869435584,3.87884956,2585.9,2583.2,0.19436238]
[1769869435772,3.87884956,2585.4,2583.2,0.19436238]
[1769869436384,3.87884956,2584.6,2582.6,0.00240677]
[1769869436585,3.87884956,2584.0,2582.6,0.00240677]
[1769869436781,3.87884956,2583.9,2582.6,0.00240677]
[1769869436984,3.87884956,2584.8,2582.6,0.00240677]
[1769869437180,3.87884956,2584.4,2582.6,0.00240677]
[1769869437785,4.00167238,2583.5,2582.6,0.00240677]
[1769869437974,4.00496256,2583.5,2581.2,0.06738447]
[1769869438184,3.87884956,2583.2,2580.8,0.29469413]
[1769869438488,3.87884956,2583.2,2581.3,0.29469413]
[1769869438982,3.87884956,2583.2,2581.3,2.47165236]
[1769869439292,3.96554148,2584.0,2582.1,0.19393]
[1769869439480,3.96554148,2585.0,2582.7,2.46874351]
[1769869439679,3.96554148,2585.0,2582.8,6.139]
[1769869439877,3.96554148,2584.1,2582.7,3.87]
[1769869440180,3.96554148,2584.1,2582.0,3.87]
[1769869440479,3.97010655,2584.1,2582.4,0.19391]
[1769869440884,4.40306202,2585.8,2582.0,3.87]
[1769869440885,3.935102,2584.6,2582.9,2.46874351]
[1769869441187,3.935102,2584.6,2582.0,3.87]
[1769869441382,3.935102,2583.8,2582.0,3.87]
[1769869441580,3.935102,2583.0,2581.3,0.00290885]
[1769869441775,3.93364757,2582.2,2580.6,3.87]
[1769869441979,2.43074698,2581.9,2580.6,3.87]
[1769869442177,3.92476047,2581.7,2580.6,3.87]
[1769869442378,2.21648625,2584.4,2580.8,0.08156203]
[1769869442579,0.19369,2585.4,2582.4,3.96106592]
[1769869442775,0.69861656,2584.5,2582.6,4.15495592]
[1769869442980,0.00357912,2585.4,2582.6,3.96106592]
[1769869443178,0.00357912,2585.4,2583.0,3.96106592]
[1769869443383,0.00357912,2585.4,2583.0,4.15492592]
[1769869443578,0.00357912,2585.4,2583.0,3.96106592]
[1769869443781,2.43074698,2584.4,2582.4,0.00378138]
[1769869443986,2.43074698,2584.7,2582.4,0.00378138]
[1769869444186,0.00357912,2585.4,2582.4,3.91246488]
[1769869444390,3.87884956,2585.3,2582.4,3.91246488]
[1769869444588,3.87884956,2585.3,2582.8,3.9086835]
[1769869444793,3.87884956,2585.3,2583.1,3.9086835]
[1769869445194,3.87884956,2584.9,2583.2,3.871]
[1769869445599,2.43074698,2584.8,2583.2,3.871]
[1769869445785,0.00357912,2585.4,2583.8,3.9086835]
[1769869445989,3.88574543,2586.4,2584.3,3.9086835]
[1769869446198,3.88574543,2586.4,2583.2,3.871]
[1769869446199,3.87884956,2588.7,2585.4,4.08862543]
[1769869446399,3.87884956,2588.7,2584.9,3.89493543]
[1769869446688,3.87884956,2587.6,2583.8,3.89493543]
[1769869446891,3.84972858,2587.4,2584.2,3.71157599]
[1769869447086,3.84972858,2587.0,2584.2,3.90535599]
[1769869447489,0.00501684,2587.6,2584.4,3.71157599]
[1769869447490,3.84972858,2586.8,2584.4,3.71157599]
[1769869447988,3.84972858,2586.6,2584.4,3.71157599]
[1769869448393,3.84972858,2586.6,2584.4,3.41157599]
[1769869448891,3.84972858,2585.9,2583.9,2.27]
[1769869449096,3.84972858,2585.9,2583.9,1.97]
[1769869449599,3.84972858,2585.9,2583.9,1.67]
[1769869449800,3.84972858,2585.9,2583.8,0.00307032]
[1769869449995,33.2863287,2587.4,2584.4,0.19376]
[1769869449996,3.84972858,2587.4,2584.4,0.19376]
[1769869450191,3.84972858,2587.3,2584.4,0.19376]
[1769869450390,3.84972858,2587.0,2584.4,0.19376]
[1769869450600,3.84972858,2586.4,2584.0,3.56835309]
[1769869450790,3.84972858,2586.4,2584.5,0.19376]
[1769869451094,3.84972858,2585.6,2583.9,2.27]
[1769869451289,3.85386678,2585.6,2583.9,3.87]
[1769869451490,2.43074698,2585.4,2583.9,3.87]
[1769869451691,6.28047556,2585.4,2583.9,3.87]
[1769869451890,2.43074698,2585.3,2583.9,3.87]
[1769869452093,2.43074698,2585.3,2583.8,0.00307032]
[1769869452094,3.84972858,2585.1,2583.8,0.00307032]
[1769869452403,3.84972858,2584.8,2583.8,0.00307032]
[1769869452696,3.84972858,2583.8,2581.9,3.79361188]
[1769869452896,3.84972858,2583.8,2582.0,3.87]
[1769869453204,3.84972858,2582.6,2580.9,3.71157599]
[1769869453496,3.85360272,2582.6,2580.9,3.71619426]
[1769869453802,2.43074698,2581.2,2580.0,3.87]
[1769869453992,1.56721343,2582.5,2580.0,3.87]
[1769869453993,3.84972858,2581.3,2580.0,3.87]
[1769869454188,3.84972858,2581.2,2580.0,3.87]
[1769869454393,2.0194938,2581.6,2580.0,3.87]
[1769869454595,3.84972858,2581.5,2580.0,3.87]
[1769869454799,3.84972858,2581.5,2580.0,3.87299679]
[1769869455104,2.43074698,2580.8,2580.0,0.00299679]
[1769869455294,3.84972858,2580.1,2579.2,0.6]
[1769869455499,3.84972858,2579.6,2577.9,7.58257599]
[1769869455698,3.84972858,2579.4,2577.6,0.19169778]
[1769869455895,3.84972858,2579.4,2577.6,3.90327377]
[1769869456096,4.92486186,2579.3,2577.6,3.90327377]
[1769869456409,3.84972858,2577.9,2577.6,0.19538417]
[1769869456702,4.20704014,2579.2,2577.6,3.90696016]
[1769869456900,3.8542065,2579.3,2577.6,3.90696016]
[1769869457103,1.6681578,2579.2,2577.6,3.90696016]
[1769869457401,0.19396,2581.9,2578.1,3.71157599]
[1769869457603,3.84972858,2581.2,2578.8,3.71157599]
[1769869457798,4.04372858,2581.2,2577.7,3.71157599]
[1769869457993,3.84972858,2580.8,2578.7,3.71157599]
[1769869458200,3.85330565,2580.8,2574.9,3.81716239]
[1769869458399,3.84972858,2577.5,2574.9,3.81716239]
[1769869458802,3.84972858,2577.5,2574.5,2.46874351]
[1769869458803,3.84972858,2576.6,2574.0,0.19454]
[1769869458999,0.067,2574.9,2573.9,6.1803195]
[1769869459305,3.84972858,2575.9,2573.9,0.00449877]
[1769869459604,0.19423,2578.2,2573.9,0.00449877]
[1769869459605,4.24866945,2574.8,2573.9,0.00449877]
[1769869459802,3.84972858,2576.9,2573.3,3.71157599]
[1769869460003,4.24866945,2575.8,2573.8,3.71157599]
[1769869460193,4.24866945,2575.8,2573.1,4.74074351]
[1769869460194,0.74634755,2576.8,2574.6,0.1945]
[1769869460395,3.84972858,2577.5,2574.8,3.71157599]
[1769869460604,3.84972858,2577.5,2575.3,3.71157599]
[1769869460803,5.41284781,2577.5,2575.3,3.71507994]
[1769869461104,0.08287601,2577.4,2576.0,3.71157599]
[1769869461296,0.08287601,2577.4,2575.3,0.00350395]
[1769869461297,3.84972858,2579.7,2576.8,3.71157599]
[1769869461496,3.84972858,2579.7,2577.0,3.71157599]
[1769869461700,3.84972858,2579.4,2577.0,3.71157599]
[1769869461902,4.37806946,2579.7,2577.0,7.58757599]
[1769869461903,3.84972858,2578.8,2577.0,7.58757599]
[1769869462098,3.84972858,2578.8,2576.5,6.1803195]
[1769869462401,3.84972858,2578.8,2576.7,3.71157599]
[1769869462402,3.84972858,2578.6,2576.7,3.71157599]
[1769869462599,3.84972858,2578.6,2577.2,2.46874351]
[1769869462905,3.84972858,2579.3,2577.3,3.71157599]
[1769869463114,3.84972858,2579.3,2577.2,0.00311675]
[1769869463304,0.19408,2580.3,2577.2,0.00311675]
[1769869463305,4.44789806,2578.5,2577.2,0.00311675]
[1769869463506,0.53128195,2580.6,2577.3,3.71157599]
[1769869463701,3.84972858,2579.6,2577.3,3.71157599]
[1769869463897,3.85378847,2579.6,2577.3,3.71157599]
[1769869464101,0.00405989,2579.6,2578.0,3.71157599]
[1769869464605,3.84972858,2580.9,2578.7,3.71157599]
[1769869464910,3.84972858,2581.5,2579.4,3.71157599]
[1769869465204,3.84972858,2581.5,2579.3,2.46874351]
[1769869465205,3.84972858,2581.9,2579.6,3.71157599]
[1769869465404,3.84972858,2581.9,2580.0,2.46874351]
[1769869465598,3.85420932,2581.9,2580.1,3.71157599]
[1769869465798,0.00448074,2581.9,2580.1,3.71157599]
[1769869466401,1.56213252,2581.1,2580.0,0.00279117]
[1769869466608,1.56213252,2581.5,2580.0,0.00279117]
[1769869466808,0.00448074,2581.9,2580.0,3.71436716]
[1769869467008,3.84972858,2581.8,2580.0,3.71436716]
[1769869467211,0.00448074,2581.9,2580.0,3.90845716]
[1769869467411,0.00448074,2581.9,2580.0,0.00279117]
[1769869467412,3.84972858,2581.8,2580.0,0.00279117]
[1769869467605,1.56213252,2581.3,2580.0,0.00279117]
[1769869467806,5.4118611,2581.2,2580.0,0.00279117]
[1769869468100,1.56213252,2581.1,2580.0,0.00279117]
[1769869468301,1.56213252,2580.8,2580.0,0.00279117]
[1769869468498,1.56213252,2580.9,2580.0,0.00279117]
[1769869468704,1.56213252,2580.7,2580.0,0.00279117]
[1769869468904,3.84972858,2581.8,2580.0,3.71436716]
[1769869469208,0.00448074,2581.9,2580.2,3.71157599]
[1769869469609,1.56213252,2581.6,2580.2,3.71157599]
[1769869469809,1.56213252,2581.7,2580.2,3.71157599]
[1769869470112,0.00448074,2581.9,2580.7,3.71157599]
[1769869470315,0.00448074,2581.9,2580.0,0.00279117]
[1769869470316,3.84972858,2584.4,2581.5,2.46874351]
[1769869470506,3.84972858,2584.4,2582.2,2.46874351]
[1769869470706,1.56661326,2584.2,2582.2,2.46874351]
[1769869471207,3.84972858,2584.1,2582.2,0.00412429]
[1769869471406,3.84972858,2583.4,2582.2,0.00412429]
[1769869471607,0.00330256,2584.2,2581.7,3.877]
[1769869471608,3.84972858,2582.9,2581.7,3.877]
[1769869471809,3.84972858,2582.9,2580.8,2.46874351]
[1769869472009,3.84972858,2582.9,2580.5,0.19404]
[1769869472010,3.84972858,2582.9,2580.9,6.15]
[1769869472209,5.41634184,2582.8,2580.9,5.65]
[1769869472514,3.84972858,2582.8,2581.0,3.71157599]
[1769869472712,3.84972858,2582.8,2581.0,3.71650212]
[1769869473211,3.84972858,2584.1,2581.1,2.46874351]
[1769869473411,3.84972858,2583.4,2581.3,0.19398]
[1769869473608,3.84972858,2583.4,2581.4,3.71157599]
[1769869474120,0.00330256,2584.2,2582.4,3.71157599]
[1769869474411,3.85303114,2584.2,2582.6,3.71157599]
[1769869474612,0.00330256,2584.2,2582.8,3.71157599]
[1769869474806,3.85303114,2584.2,2582.7,6.149]
[1769869475006,1.56661326,2583.7,2582.7,6.149]
[1769869475210,3.85303114,2584.2,2582.7,9.86057599]
[1769869475211,0.00330256,2584.2,2582.7,9.86057599]
[1769869475415,3.84972858,2586.9,2583.7,3.71157599]
[1769869475813,3.84972858,2586.9,2583.8,0.19379]
[1769869476007,3.84972858,2586.7,2583.7,3.71157599]
[1769869476207,3.84972858,2586.7,2583.7,3.90536599]
[1769869476410,3.85332363,2586.7,2583.7,3.7144423]
[1769869476610,3.85332363,2586.7,2584.8,0.19371]
[1769869476810,3.85332363,2586.7,2584.4,3.71157599]
[1769869476811,3.85332363,2586.7,2584.9,6.148]
[1769869477007,0.00359505,2586.7,2585.3,0.19367]
[1769869477209,3.94407386,2586.7,2585.3,0.19367]
[1769869477518,3.94407386,2586.7,2584.3,2.46874351]
[1769869477714,3.94407386,2586.7,2584.7,0.19372]
[1769869478219,3.94407386,2586.7,2584.8,3.87649288]
[1769869478612,3.94407386,2586.7,2584.5,2.272]
[1769869478913,3.94407386,2586.7,2583.7,3.68564919]
[1769869479119,3.94407386,2586.7,2583.8,6.146]
[1769869479313,3.94407386,2586.7,2583.7,0.00286631]
[1769869479614,4.13410881,2586.0,2583.7,0.00286631]
[1769869480011,3.94047881,2585.8,2583.7,0.00286631]
[1769869480212,4.13411881,2585.8,2583.7,0.00286631]
[1769869480412,4.13413881,2585.6,2582.0,3.68974583]
[1769869480620,4.13413881,2585.6,2582.5,3.873]
[1769869481017,3.92359054,2585.0,2581.8,0.19394]
[1769869481323,3.72989054,2584.8,2581.8,2.4694879]
[1769869481615,3.73361644,2584.8,2581.8,2.2755479]
[1769869481917,3.72989054,2584.5,2581.8,2.2755479]
[1769869482119,3.92365054,2584.2,2581.8,0.0035479]
[1769869482310,3.72989054,2584.2,2581.8,0.0035479]
[1769869482815,3.72989054,2584.2,2581.8,3.69329373]
[1769869483118,3.72989054,2584.2,2582.2,0.19391]
[1769869483310,3.72989054,2584.2,2582.1,3.873]
[1769869483817,3.72989054,2584.2,2582.3,3.68974583]
[1769869484210,3.73361644,2584.8,2582.8,0.19386]
[1769869484520,3.73361644,2584.8,2582.9,0.19385]
[1769869484720,3.73361644,2584.8,2583.0,3.873]
[1769869484915,3.73361644,2584.8,2582.1,3.88366583]
[1769869485117,3.73361644,2584.8,2582.2,3.873]
[1769869485514,3.92362054,2584.6,2582.2,3.873]
[1769869485815,3.72989054,2584.6,2582.3,3.68974583]
[1769869486117,3.72989054,2584.6,2582.2,4.06691]
[1769869486320,3.72989054,2584.6,2582.3,3.88364583]
[1769869487214,3.72989054,2584.6,2582.7,3.68974583]
[1769869487518,3.72989054,2584.6,2582.8,6.33786]
[1769869488225,3.72989054,2584.6,2581.8,0.0035479]
[1769869488226,3.79727109,2584.6,2578.8,13.28250961]
[1769869488516,3.72989054,2582.1,2578.9,3.88389583]
[1769869488914,3.72989054,2581.9,2578.9,3.88389583]
[1769869489215,0.1872778,2581.8,2578.9,3.88389583]
[1769869489417,3.72989054,2581.7,2578.9,3.88862204]
[1769869489611,3.72989054,2581.7,2579.7,3.68974583]
[1769869489811,3.72989054,2581.7,2579.9,3.68974583]
[1769869490024,0.00282427,2581.9,2580.5,3.69329373]
[1769869490215,0.00282427,2581.9,2580.6,9.83374583]
[1769869490516,0.00282427,2581.9,2580.8,3.68974583]
[1769869490817,3.72989054,2580.9,2577.5,3.68974583]
[1769869491118,3.72989054,2580.5,2577.7,3.68974583]
[1769869491416,3.72989054,2580.5,2577.9,3.68974583]
[1769869491614,3.73295106,2580.5,2578.4,3.68974583]
[1769869491815,6.45537123,2580.4,2578.6,3.68974583]
[1769869492119,3.72989054,2580.3,2578.7,6.146]
[1769869492310,3.72989054,2580.1,2577.5,3.75721822]
[1769869492512,3.72989054,2580.1,2577.7,6.146]
[1769869492720,3.72989054,2579.9,2577.7,6.146]
[1769869493127,3.72989054,2579.7,2577.7,6.146]
[1769869493322,0.00306052,2580.5,2575.8,3.88413583]
[1769869493323,3.72989054,2579.5,2575.8,3.88413583]
[1769869493523,3.72989054,2579.5,2576.3,3.68974583]
[1769869493719,3.72989054,2579.5,2576.8,3.68974583]
[1769869493924,3.72989054,2579.5,2577.0,3.68974583]
[1769869494214,0.08140293,2579.4,2577.0,3.8874526]
[1769869494418,3.92401054,2579.4,2577.0,0.00340677]
[1769869494624,8.23318869,2579.4,2577.0,0.00340677]
[1769869494819,3.72989054,2579.3,2577.0,0.00340677]
[1769869495219,3.72989054,2579.2,2577.0,0.00340677]
[1769869495716,3.72989054,2579.0,2577.1,6.149]
[1769869496123,3.89538869,2578.9,2577.1,3.876]
[1769869496423,3.72989054,2578.5,2576.1,2.273]
[1769869496824,3.72989054,2578.3,2576.1,2.273]
[1769869497218,3.72989054,2578.1,2576.1,2.27601181]
[1769869497418,3.72989054,2578.1,2576.1,5.96575764]
[1769869497617,3.72989054,2577.9,2576.2,3.68974583]
[1769869497921,0.24843512,2577.8,2576.2,6.151]
[1769869498318,0.00372801,2578.3,2576.3,5.96374583]
[1769869498624,4.2346372,2578.0,2576.5,3.68974583]
[1769869499022,4.2346372,2578.0,2576.1,0.00301181]
[1769869499023,0.00372801,2578.3,2576.7,3.68974583]
[1769869499421,4.13440218,2578.2,2576.7,3.68974583]
[1769869499820,0.00372801,2578.3,2576.9,3.68974583]
[1769869500321,4.13440218,2578.2,2576.9,3.68974583]
[1769869500518,4.13440218,2578.2,2577.1,3.68974583]
[1769869500823,0.00372801,2578.3,2577.1,3.68974583]
[1769869501023,0.19405,2580.6,2577.6,3.96406029]
[1769869501224,4.34312679,2578.2,2573.9,0.19455]
[1769869501418,4.34312679,2578.2,2571.8,33.8728194]
[1769869501419,0.19432,2577.1,2572.2,3.96987803]
[1769869501620,0.19432,2577.1,2572.7,4.66987803]
[1769869501828,4.28562878,2577.0,2572.7,4.66987803]
[1769869502129,2.39468636,2577.8,2573.2,3.94128793]
[1769869502325,2.39945986,2577.8,2573.9,3.94128793]
[1769869502623,3.84622864,2578.2,2575.5,3.94128793]
[1769869502818,0.19408,2580.3,2575.7,3.94128793]
[1769869503028,2.68630222,2578.1,2575.9,3.94128793]
[1769869503218,0.0571802,2579.5,2576.1,3.94128793]
[1769869503427,0.00498732,2579.5,2576.1,3.9443074]
[1769869503625,4.06467122,2578.9,2576.1,3.9443074]
[1769869503925,0.00498732,2579.5,2576.1,3.9443074]
[1769869504132,4.157718,2579.4,2576.3,3.92335464]
[1769869504337,0.75311029,2578.8,2576.3,3.92335464]
[1769869504523,0.0980341,2579.5,2576.5,3.92335464]
[1769869504722,3.48523663,2579.3,2576.5,3.92335464]
[1769869505028,0.00498732,2579.5,2576.5,3.92335464]
[1769869505333,0.00498732,2579.5,2577.3,3.92335464]
[1769869505535,3.9780341,2581.6,2577.5,3.92335464]
[1769869505719,0.0980341,2581.6,2577.9,3.92086098]
[1769869506026,2.33559776,2581.5,2578.1,3.92086098]
[1769869506228,0.10541292,2581.4,2578.3,3.91717157]
[1769869506427,0.10541292,2581.4,2578.5,3.91717157]
[1769869506736,0.11027531,2581.4,2578.5,3.92097657]
[1769869507036,40.8,2582.6,2578.7,3.91727371]
[1769869507424,40.8,2582.6,2578.9,3.96998017]
[1769869507629,3.88,2582.9,2579.4,3.96998017]
[1769869507936,3.879,2583.9,2579.4,3.96998017]
[1769869508120,3.879,2583.9,2578.5,0.003805]
[1769869508121,0.00392936,2582.9,2579.8,3.97289633]
[1769869508427,0.00392936,2582.9,2580.0,3.97289633]
[1769869508629,0.00392936,2582.9,2580.2,3.97289633]
[1769869509032,2.275,2584.8,2580.2,3.97289633]
[1769869509232,2.275,2584.8,2580.4,3.97289633]
[1769869509735,0.19375,2584.6,2580.4,3.97289633]
[1769869509924,0.00325521,2584.6,2580.6,3.97289633]
[1769869510124,0.27348475,2583.8,2580.8,3.86408715]
[1769869510323,0.27348475,2583.6,2580.8,3.86408715]
[1769869510527,0.27348475,2583.2,2580.9,3.86408715]
[1769869510925,0.27348475,2584.4,2580.9,3.86408715]
[1769869511532,0.00325521,2584.6,2581.5,3.86408715]
[1769869511726,0.00325521,2584.6,2581.8,3.86408715]
[1769869512033,0.00325521,2584.6,2582.0,3.86408715]
[1769869512338,0.00325521,2584.6,2582.2,3.86408715]
[1769869512635,0.00325521,2584.6,2582.4,3.86408715]
[1769869512939,0.00325521,2584.6,2582.6,3.86408715]
[1769869513233,0.00325521,2584.6,2582.8,3.86408715]
[1769869513437,0.32209724,2584.6,2582.8,3.86408715]
[1769869513630,0.00325521,2584.6,2582.8,3.86408715]
[1769869513940,0.31884203,2586.3,2583.1,3.86408715]
[1769869514130,0.31791017,2586.2,2583.3,3.86408715]
[1769869514329,0.31791017,2586.2,2582.4,0.00356754]
[1769869514330,0.31791017,2586.2,2583.5,3.86408715]
[1769869514541,0.31791017,2587.6,2584.7,3.86408715]
[1769869514833,0.31791017,2587.6,2584.9,3.86408715]
[1769869515037,0.3219438,2587.6,2585.1,3.86408715]
[1769869515237,0.00403363,2587.6,2585.1,3.86408715]
[1769869515538,0.00403363,2587.6,2585.3,3.86408715]
[1769869516036,0.00403363,2587.6,2585.6,3.86408715]
[1769869516235,0.00403363,2587.6,2585.8,3.86408715]
[1769869516538,0.00403363,2587.6,2586.0,3.86408715]
[1769869516931,0.25470049,2589.4,2586.0,3.86408715]
[1769869517235,0.25470049,2589.4,2585.9,6.149]
[1769869517236,0.4504319,2589.5,2586.2,4.05770715]
[1769869517431,0.4504319,2589.5,2586.4,3.86408715]
[1769869517432,0.19169778,2589.5,2586.4,3.86408715]
[1769869517636,0.25873412,2589.3,2586.4,7.73908715]
[1769869517941,0.25873412,2588.4,2584.8,3.86408715]
[1769869518130,0.14893122,2588.2,2585.0,3.89843071]
[1769869518839,0.14893122,2588.0,2585.2,3.89843071]
[1769869519139,0.14893122,2587.8,2585.2,3.89843071]
[1769869519336,0.14893122,2587.7,2585.2,3.89843071]
[1769869520238,4.03769655,2587.9,2585.2,3.89843071]
[1769869521336,0.16469655,2587.8,2585.2,3.90532862]
[1769869521636,0.16469655,2587.5,2585.4,3.89054805]
[1769869521843,0.16469655,2587.3,2585.2,0.00689791]
[1769869522032,0.36289791,2587.3,2585.2,0.00689791]
[1769869522232,0.01097186,2587.2,2585.2,3.9743083]
[1769869522638,0.19356,2587.1,2580.7,3.97289632]
[1769869522836,0.19369,2585.4,2581.9,4.16684632]
[1769869523034,6.143,2585.3,2581.9,4.16684632]
[1769869523236,4.06571,2585.2,2582.1,3.97289632]
[1769869523443,41.45,2585.1,2582.1,3.97289632]
[1769869523738,0.19379,2584.1,2582.1,0.00397319]
[1769869523930,27.757,2585.0,2582.1,0.00397319]
[1769869523931,0.1938,2583.9,2582.1,0.00397319]
[1769869524137,0.1938,2583.9,2582.1,3.97686952]
[1769869524337,3.872,2584.2,2581.2,3.97289633]
[1769869524338,0.19385,2583.3,2581.2,3.97289633]
[1769869525239,0.19385,2583.3,2581.2,3.97744751]
[1769869525437,0.1939,2582.6,2581.2,0.00455118]
[1769869525630,0.19681351,2582.6,2581.2,0.00455118]
[1769869526141,0.19392,2582.4,2580.2,3.97289633]
[1769869526546,0.00291351,2582.6,2580.2,3.97289633]
[1769869526838,0.00291351,2582.6,2579.8,3.873]
[1769869526839,0.19395,2581.9,2579.8,3.97289633]
[1769869527048,0.19395,2581.9,2579.8,3.97649454]
[1769869527744,0.00291351,2582.6,2579.8,4.17060454]
[1769869528536,0.00291351,2582.6,2580.0,3.97289633]
[1769869528938,0.19395,2581.9,2580.0,3.97289633]
[1769869529139,0.00291351,2582.6,2580.0,3.97289633]
[1769869529537,0.19395,2581.9,2580.0,3.97289633]
[1769869529945,0.00291351,2582.6,2580.0,3.97289633]
[1769869530145,0.00758703,2582.4,2580.0,3.97289633]
[1769869530348,0.20150703,2582.4,2580.0,3.97289633]
[1769869530541,0.19386,2583.1,2580.2,3.96910281]
[1769869531040,0.19386,2583.1,2580.4,3.96910281]
[1769869531249,40.8,2583.8,2580.7,3.96910281]
[1769869531250,3.874,2583.4,2580.7,3.96910281]
[1769869531750,3.87750708,2583.4,2580.9,4.16312281]
[1769869532143,3.87750708,2583.4,2580.9,3.96910281]
[1769869532344,0.19397,2581.8,2579.9,3.97289633]
[1769869532543,0.19385,2583.3,2579.9,3.97289633]
[1769869532544,0.19397,2581.7,2579.9,3.97289633]
[1769869532745,0.19397,2581.7,2578.6,2.272]
[1769869532746,0.19405,2580.6,2579.4,3.97289633]
[1769869532949,0.19405,2580.6,2577.0,1.00296318]
[1769869532950,0.19405,2580.6,2578.3,3.875]
[1769869533250,0.33079099,2580.5,2578.4,3.875]
[1769869533548,0.33079099,2580.5,2577.0,1.00296318]
[1769869533549,2.65760813,2580.5,2577.0,1.00296318]
[1769869533848,2.33030592,2580.5,2577.1,0.19431]
[1769869534044,2.54388189,2580.3,2577.2,3.875]
[1769869534239,0.33079099,2580.4,2577.3,0.1943]
[1769869534445,0.08270577,2580.2,2577.3,0.1943]
[1769869534646,0.16538266,2580.4,2577.3,0.1943]
[1769869534846,0.16538266,2580.4,2577.4,3.86408715]
[1769869535353,0.16538266,2580.4,2577.4,4.05837715]
[1769869535549,2.54388189,2582.3,2578.7,3.86408715]
[1769869535754,2.54388189,2582.3,2578.9,3.86408715]
[1769869536053,2.54388189,2582.3,2578.9,4.05825715]
[1769869536349,2.70773908,2580.9,2578.9,3.86408715]
[1769869536656,2.70773908,2580.9,2578.9,3.86723668]
[1769869536657,2.51775311,2580.9,2578.9,3.86723668]
[1769869536850,0.00404403,2580.9,2578.9,3.86723668]
[1769869537043,2.51939591,2580.9,2578.9,3.86723668]
[1769869537350,2.51939591,2580.9,2578.9,0.00314953]
[1769869537549,2.51535188,2580.6,2578.9,0.00314953]
[1769869538643,0.00404403,2580.9,2578.9,3.64403494]
[1769869539547,0.00404403,2580.9,2579.2,3.64088541]
[1769869540448,2.44530534,2580.4,2578.2,3.66796473]
[1769869540647,2.44530534,2580.1,2577.9,3.877]
[1769869540852,0.00404403,2580.9,2578.0,3.66796473]
[1769869540853,2.44530534,2579.9,2578.0,3.66796473]
[1769869541052,2.44530534,2580.4,2578.1,3.66796473]
[1769869541349,0.99261034,2580.0,2578.3,0.00243333]
[1769869541550,3.877,2580.6,2578.4,3.66796473]
[1769869541757,3.877,2580.6,2578.4,3.67039806]
[1769869541956,3.877,2580.6,2578.3,0.00407396]
[1769869541957,2.44934937,2580.9,2578.6,3.66796473]
[1769869542151,2.45229552,2580.5,2578.3,3.67203869]
[1769869542749,0.00404403,2580.9,2578.3,3.67203869]
[1769869542750,2.45229552,2579.7,2578.3,0.00407396]
[1769869542949,2.45229552,2579.4,2577.3,3.66796473]
[1769869543348,2.70048018,2579.3,2577.3,3.66796473]
[1769869543855,2.70048018,2579.3,2577.3,3.67071329]
[1769869544053,2.89463018,2579.3,2577.3,3.67071329]
[1769869544356,2.89463018,2579.3,2577.4,3.878]
[1769869544561,2.66116934,2579.2,2577.3,3.67071329]
[1769869545057,3.29417286,2579.1,2577.3,3.67071329]
[1769869545953,0.19429,2577.4,2575.7,3.66796473]
[1769869546154,2.51606383,2578.2,2575.7,3.66796473]
[1769869546462,3.06318211,2577.3,2576.3,3.66796473]
[1769869546753,0.00447265,2577.3,2576.5,3.66796473]
[1769869546950,0.19419,2578.8,2577.0,3.66796473]
[1769869547151,5.16517135,2579.0,2577.2,3.66796473]
[1769869547152,2.51606383,2579.0,2577.2,3.66796473]
[1769869547354,2.51606383,2579.5,2577.4,3.66796473]
[1769869547550,2.06845271,2578.9,2577.4,3.66796473]
[1769869547751,0.1941,2579.9,2577.7,3.66796473]
[1769869548053,0.74441605,2579.8,2578.4,3.66796473]
[1769869548261,0.74441605,2579.8,2578.5,3.66796473]
[1769869548558,2.41362691,2581.0,2579.0,3.67039806]
[1769869548759,2.41362691,2581.0,2579.0,3.66796473]
[1769869548958,0.19403,2580.9,2579.2,3.66796473]
[1769869549159,3.6739117,2580.0,2578.4,0.00435753]
[1769869549457,3.6739117,2580.3,2578.4,0.00435753]
[1769869549656,3.67825328,2580.0,2578.4,3.88335753]
[1769869549958,3.67825328,2580.0,2578.4,0.00435753]
[1769869550156,0.00434158,2580.0,2578.5,3.879]
[1769869550454,0.00434158,2580.0,2578.6,6.15643333]
[1769869550661,0.00434158,2580.0,2578.7,3.879]
[1769869551157,0.00434158,2580.0,2579.1,0.00243333]
[1769869551657,0.00434158,2580.0,2578.8,3.66796473]
[1769869551861,0.00434158,2580.0,2578.4,0.00435753]
[1769869551862,3.6739117,2579.9,2578.4,0.00435753]
[1769869552159,3.8680817,2579.1,2575.9,2.47968822]
[1769869552355,3.6739117,2579.1,2576.7,27.159]
[1769869552554,3.6739117,2579.1,2576.9,0.00243333]
[1769869552758,3.6739117,2579.1,2577.3,0.00243333]
[1769869552953,1.48908556,2579.0,2577.4,6.154]
[1769869553166,1.48908556,2579.0,2577.6,0.00243333]
[1769869553466,1.48908556,2579.0,2577.9,0.00243333]
[1769869553760,1.48908556,2579.0,2577.4,6.15843696]
[1769869553957,3.8680417,2579.6,2577.7,3.66796473]
[1769869554158,3.6739117,2579.6,2578.1,3.67039806]
[1769869554460,0.66169104,2579.5,2578.6,0.00243333]
[1769869554654,3.67825328,2580.0,2578.7,6.155]
[1769869555256,3.67825328,2580.0,2578.8,3.88]
[1769869555661,3.6739117,2578.4,2576.6,3.66796473]
[1769869555957,3.6739117,2578.2,2577.0,3.88]
[1769869556360,3.6739117,2578.2,2576.9,3.88]
[1769869556661,3.6739117,2578.2,2576.1,3.66796473]
[1769869556662,3.6739117,2578.0,2576.8,3.88]
[1769869556853,3.6739117,2578.0,2575.6,27.161]
[1769869556854,2.1519311,2580.0,2576.9,3.66796473]
[1769869557063,0.19413,2579.6,2577.1,3.66796473]
[1769869557356,0.99335818,2579.0,2577.1,3.67081209]
[1769869557749,0.99335818,2579.0,2577.6,0.12282282]
[1769869557957,0.99335818,2579.0,2577.6,2.39782282]
[1769869558558,0.99335818,2579.0,2577.6,0.12282282]